[Event "Titled Tuesday Blitz April 25 Early 2023"]
[White "Alexikov, Alexander"]
[Black "Smith, Garrett L"]
[WhiteFideId "14103958"]
[BlackFideId "2024829"]
[WhiteElo "2186"]
[BlackElo "2265"]
[Result "1-0"]
[Round "11"]
[TimeControl "180+2"]
[Date "2023.04.25"]
[WhiteClock "0:00:04"]
[BlackClock "0:00:02"]

1. e4 {[%clk 0:03:00]}  c5 {[%clk 0:03:00]} 2. Nf3 {[%clk 0:03:00]}  Nc6 {[%clk 0:03:00]} 3. d4 {[%clk 0:03:00]}  cxd4 {[%clk 0:03:01]} 4. Nxd4 {[%clk 0:03:00]}  e5 {[%clk 0:03:01]} 5. Nb5 {[%clk 0:02:59]}  d6 {[%clk 0:03:02]} 6. c4 {[%clk 0:02:57]}  Be7 {[%clk 0:03:02]} 7. N1c3 {[%clk 0:02:56]}  a6 {[%clk 0:03:01]} 8. Na3 {[%clk 0:02:56]}  f5 {[%clk 0:03:02]} 9. exf5 {[%clk 0:02:54]}  Bxf5 {[%clk 0:03:02]} 10. Bd3 {[%clk 0:02:53]}  Be6 {[%clk 0:03:03]} 11. O-O {[%clk 0:02:49]}  Nf6 {[%clk 0:03:03]} 12. f4 {[%clk 0:02:46]}  O-O {[%clk 0:03:02]} 13. Kh1 {[%clk 0:02:46]}  Rc8 {[%clk 0:02:59]} 14. f5 {[%clk 0:02:26]}  Bf7 {[%clk 0:02:58]} 15. Be3 {[%clk 0:02:19]}  d5 {[%clk 0:02:50]} 16. cxd5 {[%clk 0:02:18]}  Nxd5 {[%clk 0:02:49]} 17. Nxd5 {[%clk 0:02:18]}  Qxd5 {[%clk 0:02:36]} 18. Bc4 {[%clk 0:02:17]}  Qe4 {[%clk 0:02:36]} 19. Qf3 {[%clk 0:01:56]}  Qxf3 {[%clk 0:02:29]} 20. Rxf3 {[%clk 0:01:55]}  Bxc4 {[%clk 0:01:56]} 21. Nxc4 {[%clk 0:01:54]}  Nb4 {[%clk 0:01:56]} 22. Nxe5 {[%clk 0:01:28]}  Nc2 {[%clk 0:01:46]} 23. Raf1 {[%clk 0:01:26]}  Rfd8 {[%clk 0:01:36]} 24. Bf4 {[%clk 0:01:22]}  Nd4 {[%clk 0:01:32]} 25. R3f2 {[%clk 0:01:12]}  Nxf5 {[%clk 0:01:32]} 26. g4 {[%clk 0:01:11]}  Nd4 {[%clk 0:01:31]} 27. Rd2 {[%clk 0:01:09]}  Ne6 {[%clk 0:01:29]} 28. Be3 {[%clk 0:01:03]}  Bf6 {[%clk 0:01:24]} 29. Nd7 {[%clk 0:00:52]}  Bxb2 {[%clk 0:01:12]} 30. Bb6 {[%clk 0:00:51]}  Bc3 {[%clk 0:01:06]} 31. Rd3 {[%clk 0:00:44]}  Bd4 {[%clk 0:00:38]} 32. Bxd8 {[%clk 0:00:38]}  Rxd8 {[%clk 0:00:38]} 33. Re1 {[%clk 0:00:36]}  Kf7 {[%clk 0:00:34]} 34. Ne5+ {[%clk 0:00:35]}  Bxe5 {[%clk 0:00:33]} 35. Rxd8 {[%clk 0:00:34]}  Nxd8 {[%clk 0:00:33]} 36. Rxe5 {[%clk 0:00:34]}  Nc6 {[%clk 0:00:31]} 37. Re4 {[%clk 0:00:34]}  Kf6 {[%clk 0:00:30]} 38. Kg2 {[%clk 0:00:33]}  g5 {[%clk 0:00:30]} 39. h3 {[%clk 0:00:33]}  h6 {[%clk 0:00:30]} 40. Kf3 {[%clk 0:00:32]}  Ne5+ {[%clk 0:00:28]} 41. Ke3 {[%clk 0:00:31]}  Ng6 {[%clk 0:00:26]} 42. Re8 {[%clk 0:00:22]}  Nf4 {[%clk 0:00:25]} 43. Rb8 {[%clk 0:00:20]}  Nxh3 {[%clk 0:00:22]} 44. Rxb7 {[%clk 0:00:19]}  Ke5 {[%clk 0:00:22]} 45. Rb6 {[%clk 0:00:17]}  Nf4 {[%clk 0:00:22]} 46. Rxh6 {[%clk 0:00:15]}  Nd5+ {[%clk 0:00:20]} 47. Kf3 {[%clk 0:00:15]}  Nf6 {[%clk 0:00:19]} 48. Rh8 {[%clk 0:00:14]}  Nd7 {[%clk 0:00:12]} 49. Rg8 {[%clk 0:00:13]}  Kf6 {[%clk 0:00:11]} 50. Ra8 {[%clk 0:00:12]}  Nc5 {[%clk 0:00:11]} 51. Ra7 {[%clk 0:00:12]}  Ke5 {[%clk 0:00:10]} 52. Rg7 {[%clk 0:00:11]}  Ne6 {[%clk 0:00:10]} 53. Rh7 {[%clk 0:00:11]}  Nc5 {[%clk 0:00:09]} 54. Rh6 {[%clk 0:00:11]}  Kd5 {[%clk 0:00:09]} 55. Rg6 {[%clk 0:00:10]}  Ne6 {[%clk 0:00:09]} 56. Rf6 {[%clk 0:00:10]}  Ke5 {[%clk 0:00:08]} 57. Rg6 {[%clk 0:00:09]}  Kd5 {[%clk 0:00:08]} 58. Ke3 {[%clk 0:00:08]}  Ke5 {[%clk 0:00:06]} 59. Rh6 {[%clk 0:00:08]}  Kd5 {[%clk 0:00:06]} 60. Rh8 {[%clk 0:00:08]}  Ke5 {[%clk 0:00:05]} 61. Ra8 {[%clk 0:00:07]}  Nc5 {[%clk 0:00:06]} 62. a3 {[%clk 0:00:06]}  Kd5 {[%clk 0:00:06]} 63. Ra7 {[%clk 0:00:05]}  Ke5 {[%clk 0:00:02]} 64. Rg7 {[%clk 0:00:04]}  Ne6 {[%clk 0:00:02]} 65. Rg8 {[%clk 0:00:04]}  Nc5 {[%clk 0:00:02]} 66. Rxg5+ {[%clk 0:00:04]} 1-0


[Site "https://www.chess.com"]

[Event "Titled Tuesday Blitz April 25 Early 2023"]
[White "Dwilewicz, Katarzyna"]
[Black "mjelcic"]
[WhiteFideId "1148486"]
[WhiteElo "2065"]
[BlackElo "2234"]
[Result "0-1"]
[Round "11"]
[TimeControl "180+2"]
[Date "2023.04.25"]
[WhiteClock "0:00:02"]
[BlackClock "0:00:22"]

1. e4 {[%clk 0:02:52]}  d5 {[%clk 0:02:59]} 2. exd5 {[%clk 0:02:51]}  Nf6 {[%clk 0:02:56]} 3. Bb5+ {[%clk 0:02:50]}  Bd7 {[%clk 0:02:50]} 4. Bc4 {[%clk 0:02:48]}  Bg4 {[%clk 0:02:42]} 5. f3 {[%clk 0:02:47]}  Bf5 {[%clk 0:02:38]} 6. Nc3 {[%clk 0:02:48]}  c6 {[%clk 0:02:34]} 7. dxc6 {[%clk 0:02:46]}  Nxc6 {[%clk 0:02:34]} 8. Nge2 {[%clk 0:02:45]}  Qb6 {[%clk 0:02:18]} 9. Ng3 {[%clk 0:02:22]}  Bg6 {[%clk 0:02:15]} 10. d3 {[%clk 0:02:20]}  e6 {[%clk 0:02:13]} 11. Qe2 {[%clk 0:02:20]}  Nd4 {[%clk 0:02:06]} 12. Qf2 {[%clk 0:02:14]}  Bc5 {[%clk 0:02:05]} 13. Be3 {[%clk 0:01:45]}  O-O {[%clk 0:01:42]} 14. Na4 {[%clk 0:01:30]}  Qa5+ {[%clk 0:01:42]} 15. c3 {[%clk 0:01:31]}  Nc2+ {[%clk 0:01:32]} 16. Qxc2 {[%clk 0:01:30]}  Bxe3 {[%clk 0:01:32]} 17. Nf1 {[%clk 0:01:15]}  Bh6 {[%clk 0:01:16]} 18. b4 {[%clk 0:01:13]}  Qg5 {[%clk 0:01:08]} 19. Kf2 {[%clk 0:01:07]}  b5 {[%clk 0:01:06]} 20. h4 {[%clk 0:00:54]}  Qf5 {[%clk 0:00:59]} 21. Ng3 {[%clk 0:00:41]}  Ng4+ {[%clk 0:00:45]} 22. Kg1 {[%clk 0:00:30]}  Be3+ {[%clk 0:00:39]} 23. Kf1 {[%clk 0:00:31]}  Qf4 {[%clk 0:00:38]} 24. Ne2 {[%clk 0:00:18]}  Qb8 {[%clk 0:00:38]} 25. Bxb5 {[%clk 0:00:09]}  Qxb5 {[%clk 0:00:34]} 26. fxg4 {[%clk 0:00:10]}  Bxd3 {[%clk 0:00:34]} 27. Qd1 {[%clk 0:00:10]}  Rad8 {[%clk 0:00:29]} 28. Nb2 {[%clk 0:00:09]}  Bf5 {[%clk 0:00:23]} 29. Qe1 {[%clk 0:00:05]}  Bxg4 {[%clk 0:00:23]} 30. c4 {[%clk 0:00:03]}  Qf5+ {[%clk 0:00:23]} 31. Nf4 {[%clk 0:00:02]}  Qxf4+ {[%clk 0:00:22]} 0-1


[Site "https://www.chess.com"]

[Event "Titled Tuesday Blitz April 25 Early 2023"]
[White "Kopczynski, Michal"]
[Black "Semenova, Alina"]
[WhiteFideId "1124200"]
[BlackFideId "24113875"]
[WhiteElo "2212"]
[BlackElo "1833"]
[Result "1-0"]
[Round "11"]
[TimeControl "180+2"]
[Date "2023.04.25"]
[WhiteClock "0:00:26"]
[BlackClock "0:00:02"]

1. e4 {[%clk 0:03:00]}  e6 {[%clk 0:02:42]} 2. d4 {[%clk 0:02:59]}  d5 {[%clk 0:02:42]} 3. Nc3 {[%clk 0:03:00]}  Bb4 {[%clk 0:02:41]} 4. e5 {[%clk 0:03:00]}  c5 {[%clk 0:02:35]} 5. dxc5 {[%clk 0:03:01]}  Bxc3+ {[%clk 0:02:25]} 6. bxc3 {[%clk 0:03:00]}  Qa5 {[%clk 0:02:25]} 7. f4 {[%clk 0:02:57]}  Qxc3+ {[%clk 0:02:19]} 8. Bd2 {[%clk 0:02:57]}  Qxc5 {[%clk 0:02:20]} 9. Nf3 {[%clk 0:02:57]}  Nc6 {[%clk 0:02:20]} 10. Bd3 {[%clk 0:02:58]}  Nge7 {[%clk 0:02:19]} 11. Qe2 {[%clk 0:02:58]}  Nf5 {[%clk 0:02:17]} 12. Bxf5 {[%clk 0:02:57]}  exf5 {[%clk 0:02:16]} 13. Be3 {[%clk 0:02:53]}  Qc3+ {[%clk 0:02:16]} 14. Kf2 {[%clk 0:02:53]}  Be6 {[%clk 0:02:12]} 15. Rab1 {[%clk 0:02:53]}  b6 {[%clk 0:02:09]} 16. Rb3 {[%clk 0:02:50]}  Qa5 {[%clk 0:02:05]} 17. Qb5 {[%clk 0:02:36]}  Qxb5 {[%clk 0:02:04]} 18. Rxb5 {[%clk 0:02:37]}  O-O {[%clk 0:02:03]} 19. Bd4 {[%clk 0:02:31]}  Rac8 {[%clk 0:01:56]} 20. Rd1 {[%clk 0:02:24]}  Na5 {[%clk 0:01:39]} 21. c3 {[%clk 0:02:18]}  Nc4 {[%clk 0:01:37]} 22. Ke2 {[%clk 0:02:13]}  Rc6 {[%clk 0:01:34]} 23. a4 {[%clk 0:02:09]}  Rfc8 {[%clk 0:01:29]} 24. h3 {[%clk 0:02:06]}  h6 {[%clk 0:01:13]} 25. Ne1 {[%clk 0:02:03]}  Na3 {[%clk 0:01:01]} 26. Rb2 {[%clk 0:01:55]}  Nc4 {[%clk 0:00:58]} 27. Rb3 {[%clk 0:01:55]}  Kf8 {[%clk 0:00:52]} 28. Nd3 {[%clk 0:01:54]}  Na5 {[%clk 0:00:41]} 29. Rb5 {[%clk 0:01:54]}  Rc4 {[%clk 0:00:36]} 30. Ra1 {[%clk 0:01:51]}  Nc6 {[%clk 0:00:33]} 31. Ke3 {[%clk 0:01:43]}  Nxd4 {[%clk 0:00:20]} 32. cxd4 {[%clk 0:01:44]}  Ke7 {[%clk 0:00:18]} 33. a5 {[%clk 0:01:44]}  bxa5 {[%clk 0:00:10]} 34. Rbxa5 {[%clk 0:01:44]}  R8c7 {[%clk 0:00:10]} 35. Rxa7 {[%clk 0:01:45]}  g5 {[%clk 0:00:09]} 36. Rxc7+ {[%clk 0:01:44]}  Rxc7 {[%clk 0:00:08]} 37. Nc5 {[%clk 0:01:42]}  f6 {[%clk 0:00:07]} 38. exf6+ {[%clk 0:01:40]}  Kxf6 {[%clk 0:00:07]} 39. Ra6 {[%clk 0:01:40]}  Re7 {[%clk 0:00:07]} 40. fxg5+ {[%clk 0:01:34]}  hxg5 {[%clk 0:00:07]} 41. h4 {[%clk 0:01:35]}  gxh4 {[%clk 0:00:07]} 42. Kf4 {[%clk 0:01:34]}  Kf7 {[%clk 0:00:06]} 43. Nd3 {[%clk 0:01:26]}  Re8 {[%clk 0:00:04]} 44. Ne5+ {[%clk 0:01:25]}  Kf6 {[%clk 0:00:04]} 45. Nf3 {[%clk 0:01:16]}  Rg8 {[%clk 0:00:03]} 46. Ng5 {[%clk 0:00:54]}  Re8 {[%clk 0:00:02]} 47. Nxe6 {[%clk 0:00:24]}  Rxe6 {[%clk 0:00:03]} 48. Rxe6+ {[%clk 0:00:24]}  Kxe6 {[%clk 0:00:04]} 49. Kg5 {[%clk 0:00:25]}  h3 {[%clk 0:00:02]} 50. gxh3 {[%clk 0:00:26]}  Kf7 {[%clk 0:00:02]} 51. Kxf5 {[%clk 0:00:26]} 1-0


[Site "https://www.chess.com"]

[Event "Titled Tuesday Blitz April 25 Early 2023"]
[White "Stanisz, Patryk"]
[Black "Womacka, Mathias"]
[WhiteFideId "1123106"]
[BlackFideId "4611390"]
[WhiteElo "2069"]
[BlackElo "2377"]
[Result "1-0"]
[Round "11"]
[TimeControl "180+2"]
[Date "2023.04.25"]
[WhiteClock "0:00:04"]
[BlackClock "0:00:02"]

1. d4 {[%clk 0:03:00]}  Nf6 {[%clk 0:02:54]} 2. c4 {[%clk 0:03:01]}  e6 {[%clk 0:02:54]} 3. Nc3 {[%clk 0:03:01]}  Bb4 {[%clk 0:02:54]} 4. e3 {[%clk 0:03:01]}  c5 {[%clk 0:02:52]} 5. Ne2 {[%clk 0:03:01]}  cxd4 {[%clk 0:02:48]} 6. exd4 {[%clk 0:02:59]}  O-O {[%clk 0:02:48]} 7. a3 {[%clk 0:02:59]}  Be7 {[%clk 0:02:49]} 8. Ng3 {[%clk 0:02:39]}  d5 {[%clk 0:02:47]} 9. c5 {[%clk 0:02:39]}  Nc6 {[%clk 0:02:31]} 10. Be3 {[%clk 0:02:26]}  e5 {[%clk 0:02:29]} 11. Be2 {[%clk 0:02:15]}  exd4 {[%clk 0:02:07]} 12. Bxd4 {[%clk 0:02:15]}  Nxd4 {[%clk 0:02:07]} 13. Qxd4 {[%clk 0:02:15]}  Be6 {[%clk 0:02:07]} 14. O-O {[%clk 0:02:14]}  Nd7 {[%clk 0:01:56]} 15. b4 {[%clk 0:02:07]}  Bf6 {[%clk 0:01:55]} 16. Qd2 {[%clk 0:02:08]}  Ne5 {[%clk 0:01:46]} 17. Rac1 {[%clk 0:01:57]}  Nc4 {[%clk 0:01:33]} 18. Bxc4 {[%clk 0:01:41]}  dxc4 {[%clk 0:01:34]} 19. Qxd8 {[%clk 0:01:03]}  Rfxd8 {[%clk 0:01:35]} 20. Nge4 {[%clk 0:01:04]}  Bd4 {[%clk 0:01:20]} 21. Rfd1 {[%clk 0:00:44]}  b6 {[%clk 0:01:00]} 22. c6 {[%clk 0:00:31]}  a6 {[%clk 0:00:48]} 23. a4 {[%clk 0:00:30]}  f5 {[%clk 0:00:17]} 24. Ng5 {[%clk 0:00:13]}  Bf7 {[%clk 0:00:12]} 25. Nxf7 {[%clk 0:00:07]}  Kxf7 {[%clk 0:00:13]} 26. c7 {[%clk 0:00:06]}  Rd7 {[%clk 0:00:11]} 27. Ne2 {[%clk 0:00:05]}  Bxf2+ {[%clk 0:00:07]} 28. Kxf2 {[%clk 0:00:05]}  Rxc7 {[%clk 0:00:08]} 29. Nf4 {[%clk 0:00:03]}  b5 {[%clk 0:00:07]} 30. a5 {[%clk 0:00:03]}  Re8 {[%clk 0:00:06]} 31. Nd5 {[%clk 0:00:03]}  Rd7 {[%clk 0:00:05]} 32. Nc3 {[%clk 0:00:02]}  Red8 {[%clk 0:00:05]} 33. Rxd7+ {[%clk 0:00:02]}  Rxd7 {[%clk 0:00:06]} 34. Rd1 {[%clk 0:00:02]}  Rxd1 {[%clk 0:00:04]} 35. Nxd1 {[%clk 0:00:02]}  Ke6 {[%clk 0:00:05]} 36. Nc3 {[%clk 0:00:03]}  Ke5 {[%clk 0:00:05]} 37. Ke3 {[%clk 0:00:02]}  f4+ {[%clk 0:00:04]} 38. Kd2 {[%clk 0:00:03]}  Kd4 {[%clk 0:00:03]} 39. Nxb5+ {[%clk 0:00:01]}  axb5 {[%clk 0:00:02]} 40. a6 {[%clk 0:00:02]}  c3+ {[%clk 0:00:03]} 41. Kc2 {[%clk 0:00:02]}  Ke3 {[%clk 0:00:02]} 42. a7 {[%clk 0:00:03]}  Kf2 {[%clk 0:00:03]} 43. a8=Q {[%clk 0:00:03]}  g5 {[%clk 0:00:02]} 44. Qf3+ {[%clk 0:00:04]} 1-0


[Site "https://www.chess.com"]

[Event "Titled Tuesday Blitz April 25 Early 2023"]
[White "Fernandez Siles, Luis"]
[Black "Fierz, Martin"]
[WhiteFideId "2209420"]
[BlackFideId "1302132"]
[WhiteElo "2195"]
[BlackElo "2294"]
[Result "1-0"]
[Round "11"]
[TimeControl "180+2"]
[Date "2023.04.25"]
[WhiteClock "0:00:29"]
[BlackClock "0:00:03"]

1. e4 {[%clk 0:03:00]}  c5 {[%clk 0:02:58]} 2. Nf3 {[%clk 0:03:00]}  e6 {[%clk 0:02:58]} 3. c3 {[%clk 0:03:00]}  d5 {[%clk 0:02:57]} 4. exd5 {[%clk 0:03:01]}  exd5 {[%clk 0:02:56]} 5. d4 {[%clk 0:03:00]}  Nc6 {[%clk 0:02:56]} 6. Be3 {[%clk 0:02:59]}  cxd4 {[%clk 0:02:52]} 7. Nxd4 {[%clk 0:02:57]}  Nf6 {[%clk 0:02:52]} 8. Bb5 {[%clk 0:02:55]}  Bd7 {[%clk 0:02:45]} 9. O-O {[%clk 0:02:55]}  Bd6 {[%clk 0:02:41]} 10. Nd2 {[%clk 0:02:37]}  O-O {[%clk 0:02:39]} 11. N2f3 {[%clk 0:02:35]}  Re8 {[%clk 0:02:37]} 12. Bg5 {[%clk 0:02:30]}  h6 {[%clk 0:02:35]} 13. Bh4 {[%clk 0:02:30]}  a6 {[%clk 0:02:22]} 14. Be2 {[%clk 0:02:16]}  Re4 {[%clk 0:02:00]} 15. Bg3 {[%clk 0:02:08]}  Bxg3 {[%clk 0:01:55]} 16. hxg3 {[%clk 0:02:09]}  Re7 {[%clk 0:01:41]} 17. Bd3 {[%clk 0:02:01]}  Ne4 {[%clk 0:01:38]} 18. Qb3 {[%clk 0:01:49]}  Nxd4 {[%clk 0:01:32]} 19. cxd4 {[%clk 0:01:49]}  Bc6 {[%clk 0:01:29]} 20. Ne5 {[%clk 0:01:46]}  Nd2 {[%clk 0:01:28]} 21. Qc2 {[%clk 0:01:15]}  Nxf1 {[%clk 0:01:27]} 22. Rxf1 {[%clk 0:01:16]}  Rc8 {[%clk 0:01:23]} 23. Qd2 {[%clk 0:01:15]}  Bb5 {[%clk 0:01:10]} 24. Bxb5 {[%clk 0:01:11]}  axb5 {[%clk 0:01:11]} 25. Qb4 {[%clk 0:01:11]}  Qe8 {[%clk 0:01:06]} 26. Qd6 {[%clk 0:01:07]}  Rd8 {[%clk 0:00:56]} 27. Qc5 {[%clk 0:01:07]}  f6 {[%clk 0:00:40]} 28. Ng6 {[%clk 0:01:03]}  Re2 {[%clk 0:00:33]} 29. Nf4 {[%clk 0:00:59]}  Rxb2 {[%clk 0:00:31]} 30. Nxd5 {[%clk 0:01:00]}  Rxa2 {[%clk 0:00:21]} 31. Ne3 {[%clk 0:00:59]}  Qd7 {[%clk 0:00:18]} 32. Rd1 {[%clk 0:00:58]}  Qd6 {[%clk 0:00:15]} 33. Qxb5 {[%clk 0:00:55]}  Ra7 {[%clk 0:00:10]} 34. Nf5 {[%clk 0:00:50]}  Qd7 {[%clk 0:00:08]} 35. Qc5 {[%clk 0:00:46]}  Raa8 {[%clk 0:00:07]} 36. Ne3 {[%clk 0:00:38]}  Kh8 {[%clk 0:00:07]} 37. Qh5 {[%clk 0:00:38]}  Rac8 {[%clk 0:00:06]} 38. Nf5 {[%clk 0:00:36]}  Qe8 {[%clk 0:00:05]} 39. Qg4 {[%clk 0:00:36]}  Qf7 {[%clk 0:00:05]} 40. Re1 {[%clk 0:00:35]}  Re8 {[%clk 0:00:04]} 41. Rb1 {[%clk 0:00:34]}  Rc2 {[%clk 0:00:03]} 42. Qf3 {[%clk 0:00:34]}  Rce2 {[%clk 0:00:03]} 43. Rxb7 {[%clk 0:00:33]}  Re1+ {[%clk 0:00:03]} 44. Kh2 {[%clk 0:00:33]}  Qg6 {[%clk 0:00:02]} 45. Rxg7 {[%clk 0:00:31]}  Qxg7 {[%clk 0:00:02]} 46. Nxg7 {[%clk 0:00:31]}  Kxg7 {[%clk 0:00:03]} 47. Qg4+ {[%clk 0:00:29]} 1-0


[Site "https://www.chess.com"]

[Event "Titled Tuesday Blitz April 25 Early 2023"]
[White "Zaichenko, Daria"]
[Black "Petrova, Irina"]
[WhiteFideId "4197453"]
[BlackFideId "14124122"]
[WhiteElo "2039"]
[BlackElo "2084"]
[Result "0-1"]
[Round "11"]
[TimeControl "180+2"]
[Date "2023.04.25"]
[WhiteClock "0:00:03"]
[BlackClock "0:00:16"]

1. e4 {[%clk 0:02:57]}  d6 {[%clk 0:03:00]} 2. d4 {[%clk 0:02:55]}  Nf6 {[%clk 0:03:01]} 3. Nc3 {[%clk 0:02:54]}  e5 {[%clk 0:03:02]} 4. d5 {[%clk 0:02:51]}  Be7 {[%clk 0:03:01]} 5. f4 {[%clk 0:02:49]}  exf4 {[%clk 0:02:59]} 6. Bxf4 {[%clk 0:02:49]}  Nbd7 {[%clk 0:02:59]} 7. Bd3 {[%clk 0:02:40]}  O-O {[%clk 0:02:57]} 8. Nf3 {[%clk 0:02:40]}  Ng4 {[%clk 0:02:56]} 9. Qd2 {[%clk 0:02:30]}  Bf6 {[%clk 0:02:52]} 10. Rf1 {[%clk 0:02:20]}  Nde5 {[%clk 0:02:49]} 11. O-O-O {[%clk 0:02:19]}  a6 {[%clk 0:02:26]} 12. h3 {[%clk 0:02:17]}  Nxd3+ {[%clk 0:02:26]} 13. Qxd3 {[%clk 0:02:17]}  Ne5 {[%clk 0:02:24]} 14. Bxe5 {[%clk 0:02:15]}  Bxe5 {[%clk 0:02:20]} 15. Nxe5 {[%clk 0:02:15]}  dxe5 {[%clk 0:02:21]} 16. g4 {[%clk 0:02:15]}  Qd6 {[%clk 0:02:15]} 17. Ne2 {[%clk 0:02:14]}  Bd7 {[%clk 0:02:13]} 18. Kb1 {[%clk 0:02:11]}  b5 {[%clk 0:02:13]} 19. Ng3 {[%clk 0:02:10]}  a5 {[%clk 0:02:12]} 20. Nf5 {[%clk 0:02:10]}  Bxf5 {[%clk 0:02:12]} 21. gxf5 {[%clk 0:02:10]}  b4 {[%clk 0:02:04]} 22. Rg1 {[%clk 0:02:09]}  f6 {[%clk 0:01:57]} 23. h4 {[%clk 0:02:09]}  Rf7 {[%clk 0:01:53]} 24. Rg2 {[%clk 0:02:08]}  a4 {[%clk 0:01:47]} 25. h5 {[%clk 0:02:09]}  h6 {[%clk 0:01:46]} 26. Rdg1 {[%clk 0:02:04]}  Qd7 {[%clk 0:01:26]} 27. Qd2 {[%clk 0:02:01]}  b3 {[%clk 0:01:18]} 28. Qxh6 {[%clk 0:01:55]}  bxa2+ {[%clk 0:01:17]} 29. Kxa2 {[%clk 0:01:53]}  Rb8 {[%clk 0:01:08]} 30. Qe3 {[%clk 0:01:46]}  Qb5 {[%clk 0:01:05]} 31. Qc3 {[%clk 0:01:38]}  Kh8 {[%clk 0:00:46]} 32. Rg6 {[%clk 0:01:29]}  c5 {[%clk 0:00:35]} 33. h6 {[%clk 0:00:27]}  Rfb7 {[%clk 0:00:34]} 34. Rb1 {[%clk 0:00:07]}  a3 {[%clk 0:00:32]} 35. b3 {[%clk 0:00:05]}  c4 {[%clk 0:00:30]} 36. b4 {[%clk 0:00:03]}  Kg8 {[%clk 0:00:16]} 0-1


[Site "https://www.chess.com"]

[Event "Titled Tuesday Blitz April 25 Early 2023"]
[White "Matveeva, Olga"]
[Black "Schut, Han"]
[WhiteFideId "24107018"]
[BlackFideId "1005561"]
[WhiteElo "2056"]
[BlackElo "2024"]
[Result "1-0"]
[Round "11"]
[TimeControl "180+2"]
[Date "2023.04.25"]
[WhiteClock "0:00:08"]
[BlackClock "0:00:12"]

1. d4 {[%clk 0:03:00]}  Nf6 {[%clk 0:02:57]} 2. c4 {[%clk 0:03:00]}  g6 {[%clk 0:02:57]} 3. g3 {[%clk 0:03:01]}  Bg7 {[%clk 0:02:57]} 4. Bg2 {[%clk 0:03:02]}  d5 {[%clk 0:02:58]} 5. cxd5 {[%clk 0:03:00]}  Nxd5 {[%clk 0:02:58]} 6. Nc3 {[%clk 0:02:54]}  Nb6 {[%clk 0:02:58]} 7. Nf3 {[%clk 0:02:53]}  Nc6 {[%clk 0:02:58]} 8. e3 {[%clk 0:02:44]}  O-O {[%clk 0:02:57]} 9. O-O {[%clk 0:02:44]}  Re8 {[%clk 0:02:47]} 10. Re1 {[%clk 0:02:43]}  e5 {[%clk 0:02:46]} 11. d5 {[%clk 0:02:43]}  e4 {[%clk 0:02:34]} 12. dxc6 {[%clk 0:02:37]}  exf3 {[%clk 0:02:14]} 13. Bxf3 {[%clk 0:02:35]}  Rb8 {[%clk 0:01:58]} 14. a4 {[%clk 0:02:02]}  bxc6 {[%clk 0:01:19]} 15. Bxc6 {[%clk 0:02:00]}  Bd7 {[%clk 0:01:13]} 16. Bg2 {[%clk 0:01:48]}  Nc4 {[%clk 0:01:02]} 17. Nb5 {[%clk 0:01:29]}  Nxb2 {[%clk 0:00:41]} 18. Bxb2 {[%clk 0:01:12]}  Bxb2 {[%clk 0:00:42]} 19. Rb1 {[%clk 0:01:11]}  Bxb5 {[%clk 0:00:36]} 20. axb5 {[%clk 0:01:06]}  Qxd1 {[%clk 0:00:24]} 21. Rexd1 {[%clk 0:01:05]}  Be5 {[%clk 0:00:24]} 22. Rd7 {[%clk 0:00:56]}  Bd6 {[%clk 0:00:21]} 23. Bd5 {[%clk 0:00:52]}  Re7 {[%clk 0:00:22]} 24. Rxe7 {[%clk 0:00:49]}  Bxe7 {[%clk 0:00:22]} 25. Rb3 {[%clk 0:00:32]}  Bc5 {[%clk 0:00:19]} 26. Kg2 {[%clk 0:00:29]}  Rd8 {[%clk 0:00:18]} 27. e4 {[%clk 0:00:28]}  Bb6 {[%clk 0:00:18]} 28. f4 {[%clk 0:00:25]}  Kf8 {[%clk 0:00:17]} 29. Kf3 {[%clk 0:00:24]}  f5 {[%clk 0:00:17]} 30. g4 {[%clk 0:00:21]}  fxe4+ {[%clk 0:00:17]} 31. Kxe4 {[%clk 0:00:21]}  Re8+ {[%clk 0:00:17]} 32. Kf3 {[%clk 0:00:20]}  Re1 {[%clk 0:00:12]} 33. Rd3 {[%clk 0:00:16]}  Ke7 {[%clk 0:00:12]} 34. Bc6 {[%clk 0:00:15]}  Kf6 {[%clk 0:00:11]} 35. g5+ {[%clk 0:00:12]}  Kf7 {[%clk 0:00:11]} 36. Rd7+ {[%clk 0:00:12]}  Re7 {[%clk 0:00:12]} 37. Bd5+ {[%clk 0:00:08]}  Kf8 {[%clk 0:00:12]} 38. Rd8+ {[%clk 0:00:08]}  Kg7 {[%clk 0:00:12]} 39. Rg8# {[%clk 0:00:08]} 1-0


[Site "https://www.chess.com"]

[Event "Titled Tuesday Blitz April 25 Early 2023"]
[White "Degtiarev, Evgeny"]
[Black "Levitan, Caleb Levi"]
[WhiteFideId "4149610"]
[BlackFideId "14332620"]
[WhiteElo "2284"]
[BlackElo "1963"]
[Result "1-0"]
[Round "11"]
[TimeControl "180+2"]
[Date "2023.04.25"]
[WhiteClock "0:00:13"]
[BlackClock "0:00:03"]

1. d4 {[%clk 0:02:58]}  d5 {[%clk 0:02:58]} 2. c4 {[%clk 0:02:50]}  e6 {[%clk 0:02:57]} 3. Nc3 {[%clk 0:02:50]}  a6 {[%clk 0:02:57]} 4. cxd5 {[%clk 0:02:51]}  exd5 {[%clk 0:02:57]} 5. Nf3 {[%clk 0:02:50]}  Nf6 {[%clk 0:02:57]} 6. Bg5 {[%clk 0:02:50]}  Be6 {[%clk 0:02:56]} 7. e3 {[%clk 0:02:51]}  Nbd7 {[%clk 0:02:55]} 8. Bd3 {[%clk 0:02:48]}  Bd6 {[%clk 0:02:55]} 9. h3 {[%clk 0:02:48]}  c6 {[%clk 0:02:50]} 10. Qc2 {[%clk 0:02:47]}  Qc7 {[%clk 0:02:50]} 11. O-O {[%clk 0:02:41]}  h6 {[%clk 0:02:50]} 12. Bxf6 {[%clk 0:02:40]}  Nxf6 {[%clk 0:02:50]} 13. Bf5 {[%clk 0:02:40]}  Bxf5 {[%clk 0:02:38]} 14. Qxf5 {[%clk 0:02:41]}  O-O {[%clk 0:02:38]} 15. Rac1 {[%clk 0:02:32]}  Qd7 {[%clk 0:02:33]} 16. Qd3 {[%clk 0:02:23]}  Rfe8 {[%clk 0:02:33]} 17. a3 {[%clk 0:02:23]}  Ne4 {[%clk 0:02:32]} 18. Na4 {[%clk 0:02:21]}  Qe7 {[%clk 0:02:20]} 19. b4 {[%clk 0:02:16]}  f5 {[%clk 0:02:16]} 20. Nc5 {[%clk 0:02:04]}  g5 {[%clk 0:02:08]} 21. Nd2 {[%clk 0:01:37]}  g4 {[%clk 0:01:54]} 22. Ndxe4 {[%clk 0:01:13]}  fxe4 {[%clk 0:01:40]} 23. Qe2 {[%clk 0:01:13]}  gxh3 {[%clk 0:01:39]} 24. Qg4+ {[%clk 0:01:13]}  Kh8 {[%clk 0:01:23]} 25. Qxh3 {[%clk 0:01:12]}  Qg7 {[%clk 0:01:19]} 26. Nxb7 {[%clk 0:01:07]}  Bf8 {[%clk 0:00:24]} 27. Na5 {[%clk 0:00:58]}  Rad8 {[%clk 0:00:21]} 28. Nxc6 {[%clk 0:00:52]}  Rd6 {[%clk 0:00:20]} 29. Ne5 {[%clk 0:00:52]}  Rf6 {[%clk 0:00:14]} 30. f3 {[%clk 0:00:45]}  exf3 {[%clk 0:00:12]} 31. Rxf3 {[%clk 0:00:43]}  Rxf3 {[%clk 0:00:12]} 32. Qxf3 {[%clk 0:00:43]}  Bd6 {[%clk 0:00:12]} 33. Nf7+ {[%clk 0:00:39]}  Kg8 {[%clk 0:00:08]} 34. Nxd6 {[%clk 0:00:38]}  Qe7 {[%clk 0:00:04]} 35. Qxd5+ {[%clk 0:00:33]}  Kh8 {[%clk 0:00:05]} 36. Nf7+ {[%clk 0:00:30]}  Kg7 {[%clk 0:00:05]} 37. Ne5 {[%clk 0:00:28]}  Qf6 {[%clk 0:00:03]} 38. Rc7+ {[%clk 0:00:21]}  Kh8 {[%clk 0:00:03]} 39. Qe4 {[%clk 0:00:15]}  Re7 {[%clk 0:00:02]} 40. Rxe7 {[%clk 0:00:14]}  Qxe7 {[%clk 0:00:03]} 41. Ng6+ {[%clk 0:00:14]}  Kg7 {[%clk 0:00:04]} 42. Nxe7 {[%clk 0:00:13]}  Kf8 {[%clk 0:00:03]} 43. Nf5 {[%clk 0:00:13]} 1-0


[Site "https://www.chess.com"]